[Event "GER-ch Youth-U12 2022"]
[Site "Willingen"]
[Date "2022.06.10"]
[Round "8.17"]
[White "Bangert, Jonas"]
[Black "Kulkovets, Roman"]
[Result "1-0"]
[ECO "B10"]
[WhiteElo "1483"]
[BlackElo "1099"]
[Annotator "NA RC COMBH"]
[PlyCount "105"]
[EventDate "2022.06.05"]
[EventType "swiss"]
[EventRounds "9"]
[EventCountry "GER"]
[SourceTitle "playchess.com"]
[Source "ChessBase"]
[SourceQuality "1"]
[TimeControl "40/4500+30:900+30"]

1. e4 {[%emt 0:00:00]} c6 {[%emt 0:00:00]} 2. Nf3 {[%emt 0:00:00]} d5 {[%emt 0:00:00]} 3. d3 {[%emt 0:00:00]} dxe4 {[%emt 0:00:00]} 4. dxe4 {[%emt 0:00:00]} Qxd1+ {[%emt 0:00:00]} 5. Kxd1 {[%emt 0:00:00]} Bg4 {[%emt 0:00:00]} 6. Be2 {[%emt 0:00:00]} Nd7 {[%emt 0:00:00]} 7. Ne1 {[%emt 0:00:00]} Bxe2+ {[%emt 0:00:00]} 8. Kxe2 {[%emt 0:00:00]} e5 {[%emt 0:00:00]} 9. Nd3 {[%emt 0:00:00]} Ngf6 {[%emt 0:00:00]} 10. f3 {[%emt 0:00:00]} Bd6 {[%emt 0:00:00]} 11. Be3 {[%emt 0:00:00]} b5 {[%emt 0:00:00]} 12. a4 {[%emt 0:00:00]} bxa4 {[%emt 0:00:00]} 13. Rxa4 {[%emt 0:00:00]} c5 {[%emt 0:00:00]} 14. Nd2 {[%emt 0:00:00]} Nb6 {[%emt 0:00:00]} 15. Ra6 {[%emt 0:00:00]} Nfd7 {[%emt 0:00:20]} 16. Rha1 {[%emt 0:00:36]} O-O {[%emt 0:06:23]} 17. Rxa7 {[%emt 0:05:07]} c4 {[%emt 0:02:05]} 18. Nxc4 {[%emt 0:03:57]} Rxa7 {[%emt 0:00:15]} 19. Rxa7 {[%emt 0:00:05]} Nxc4 {[%emt 0:02:56]} 20. Rxd7 {[%emt 0:00:08]} Nxe3 {[%emt 0:00:17]} 21. Kxe3 {[%emt 0:00:07]} Bb8 {[%emt 0:00:07]} 22. c4 {[%emt 0:07:08]} Rc8 {[%emt 0:01:45]} 23. c5 {[%emt 0:02:07]} Kf8 {[%emt 0:00:32]} 24. b4 {[%emt 0:01:03]} Ke8 {[%emt 0:00:24]} 25. Rb7 {[%emt 0:00:26]} Kf8 {[%emt 0:00:37]} 26. b5 {[%emt 0:01:08]} Bc7 {[%emt 0:00:09]} 27. b6 {[%emt 0:01:16]} Bd8 {[%emt 0:00:29]} 28. Nxe5 {[%emt 0:02:22]} Be7 {[%emt 0:00:08]} 29. Nd7+ {[%emt 0:02:14]} Ke8 {[%emt 0:00:14]} 30. Kd4 {[%emt 0:00:23]} Rd8 {[%emt 0:00:39]} 31. c6 {[%emt 0:00:14]} Rc8 {[%emt 0:02:05]} 32. Rc7 {[%emt 0:09:56]} Ra8 {[%emt 0:00:46]} 33. Ra7 {[%emt 0:00:07]} Rd8 {[%emt 0:00:37]} 34. b7 {[%emt 0:00:16]} Bd6 {[%emt 0:00:06]} 35. Ra8 {[%emt 0:00:11]} f5 {[%emt 0:00:24]} 36. Rxd8+ {[%emt 0:00:44]} Kxd8 {[%emt 0:00:14]} 37. b8=Q+ {[%emt 0:00:21]} Bxb8 {[%emt 0:00:06]} 38. Nxb8 {[%emt 0:00:07]} fxe4 {[%emt 0:00:13]} 39. fxe4 {[%emt 0:00:04]} g5 {[%emt 0:00:04]} 40. Na6 {[%emt 0:00:22]} g4 {[%emt 0:00:09]} 41. Kd5 {[%emt 0:15:55]} g3 {[%emt 0:15:07]} 42. h3 {[%emt 0:00:09]} h5 {[%emt 0:00:04]} 43. Kd6 {[%emt 0:00:21]} h4 {[%emt 0:00:08]} 44. Nb4 {[%emt 0:00:06]} Kc8 {[%emt 0:00:20]} 45. Nc2 {[%emt 0:00:19]} Kd8 {[%emt 0:00:08]} 46. c7+ {[%emt 0:00:16]} Kc8 {[%emt 0:00:04]} 47. Na1 {[%emt 0:00:14]} Kb7 {[%emt 0:00:08]} 48. Kd7 {[%emt 0:00:03]} Kb6 {[%emt 0:00:05]} 49. c8=Q {[%emt 0:00:09]} Ka7 {[%emt 0:00:04]} 50. Qc6 {[%emt 0:00:39]} Kb8 {[%emt 0:00:08]} 51. Qb5+ {[%emt 0:00:07]} Ka8 {[%emt 0:00:06]} 52. Kc7 {[%emt 0:00:06]} Ka7 {[%emt 0:00:06]} 53. Qb7# {[%emt 0:00:05]} 1-0

[Event "GER-ch Youth-U12 2022"]
[Site "Willingen"]
[Date "2022.06.10"]
[Round "8.18"]
[White "Li, Luxuan"]
[Black "Martin Fernandez, Rafael"]
[Result "1/2-1/2"]
[ECO "C11"]
[WhiteElo "1235"]
[BlackElo "1678"]
[Annotator "NA RC COMBH"]
[PlyCount "111"]
[EventDate "2022.06.05"]
[EventType "swiss"]
[EventRounds "9"]
[EventCountry "GER"]
[SourceTitle "playchess.com"]
[Source "ChessBase"]
[SourceQuality "1"]
[TimeControl "40/4500+30:900+30"]

1. e4 {[%emt 0:00:00]} Nf6 {[%emt 0:00:00]} 2. Nc3 {[%emt 0:00:00]} d5 {[%emt 0:00:00]} 3. e5 {[%emt 0:00:00]} Nfd7 {[%emt 0:00:00]} 4. d4 {[%emt 0:00:00]} e6 {[%emt 0:00:00]} 5. a3 {[%emt 0:00:00]} c5 {[%emt 0:00:00]} 6. Nf3 {[%emt 0:00:00]} Nc6 {[%emt 0:00:00]} 7. Be3 {[%emt 0:00:00]} a6 {[%emt 0:00:00]} 8. a4 {[%emt 0:00:00]} Qc7 {[%emt 0:00:00]} 9. dxc5 {[%emt 0:02:16]} Ncxe5 {[%emt 0:00:00]} 10. Bf4 {[%emt 0:10:36]} Bxc5 {[%emt 0:02:48]} 11. Nxe5 {[%emt 0:04:07]} Nxe5 {[%emt 0:00:11]} 12. g3 {[%emt 0:00:27]} O-O {[%emt 0:03:22]} 13. Bg2 {[%emt 0:01:25]} Bd6 {[%emt 0:01:21]} 14. O-O {[%emt 0:03:34]} Bd7 {[%emt 0:02:03]} 15. Re1 {[%emt 0:05:21]} Rac8 {[%emt 0:01:56]} 16. Rc1 {[%emt 0:00:52]} Rfd8 {[%emt 0:01:55]} 17. Bxd5 {[%emt 0:10:32]} exd5 {[%emt 0:06:30]} 18. Nxd5 {[%emt 0:01:26]} Qb8 {[%emt 0:01:10]} 19. Bxe5 {[%emt 0:00:47]} Bxe5 {[%emt 0:00:11]} 20. Ne7+ {[%emt 0:00:18]} Kh8 {[%emt 0:01:37]} 21. Nxc8 {[%emt 0:01:24]} Bxg3 {[%emt 0:05:15]} 22. hxg3 {[%emt 0:00:36]} Qxc8 {[%emt 0:00:13]} 23. Qh5 {[%emt 0:01:53]} Be6 {[%emt 0:05:28]} 24. Qh4 {[%emt 0:01:57]} h6 {[%emt 0:01:38]} 25. Kh2 {[%emt 0:04:12]} Rd2 {[%emt 0:02:23]} 26. Kg1 {[%emt 0:03:32]} Qc5 {[%emt 0:01:34]} 27. Qf4 {[%emt 0:02:00]} Rd7 {[%emt 0:04:14]} 28. Re5 {[%emt 0:02:32]} Qb6 {[%emt 0:02:25]} 29. b3 {[%emt 0:01:53]} Rd4 {[%emt 0:02:44]} 30. Qe3 {[%emt 0:01:05]} Qd6 {[%emt 0:01:23]} 31. Re1 {[%emt 0:01:49]} Rd1 {[%emt 0:02:18]} 32. f4 {[%emt 0:05:33]} Kg8 {[%emt 0:03:55]} 33. Kf2 {[%emt 0:01:25]} Bg4 {[%emt 0:03:25]} 34. Rxd1 {[%emt 0:03:13]} Qxd1 {[%emt 0:00:19]} 35. Qd3 {[%emt 0:01:28]} Qxd3 {[%emt 0:01:28]} 36. cxd3 {[%emt 0:00:40]} Bd1 {[%emt 0:00:22]} 37. Re7 {[%emt 0:00:20]} Bxb3 {[%emt 0:00:10]} 38. Rxb7 {[%emt 0:00:16]} Bxa4 {[%emt 0:00:07]} 39. d4 {[%emt 0:00:42]} Kf8 {[%emt 0:01:59]} 40. d5 {[%emt 0:00:40]} Ke8 {[%emt 0:00:53]} 41. d6 {[%emt 0:15:35]} Bc6 {[%emt 0:21:33]} 42. Ra7 {[%emt 0:01:06]} Bb5 {[%emt 0:01:21]} 43. Ke3 {[%emt 0:01:21]} g6 {[%emt 0:00:36]} 44. Kd4 {[%emt 0:01:33]} h5 {[%emt 0:01:18]} 45. Ke5 {[%emt 0:00:33]} Bc4 {[%emt 0:00:41]} 46. Kd4 {[%emt 0:02:33]} Bb5 {[%emt 0:01:32]} 47. Kc5 {[%emt 0:01:05]} Kf8 {[%emt 0:02:46]} 48. Kd4 {[%emt 0:01:21]} Ke8 {[%emt 0:00:56]} 49. Ke5 {[%emt 0:01:27]} Bc4 {[%emt 0:01:40]} 50. Kf6 {[%emt 0:00:49]} Kd8 {[%emt 0:02:02]} 51. f5 {[%emt 0:04:01]} Bd3 {[%emt 0:02:38]} 52. fxg6 {[%emt 0:00:22]} fxg6 {[%emt 0:00:08]} 53. Ke6 {[%emt 0:01:41]} Bf5+ {[%emt 0:00:07]} 54. Kd5 {[%emt 0:00:59]} Bd3 {[%emt 0:00:23]} 55. Kc6 {[%emt 0:03:02]} Be4+ {[%emt 0:00:47]} 56. Kc5 {[%emt 0:01:18]} 1/2-1/2

[Event "GER-ch Youth-U12 2022"]
[Site "Willingen"]
[Date "2022.06.10"]
[Round "8.19"]
[White "Gavrylyuk, Oleksandr"]
[Black "Noennig, Jakob"]
[Result "0-1"]
[ECO "C60"]
[WhiteElo "1272"]
[BlackElo "1556"]
[Annotator "NA RC COMBH"]
[PlyCount "86"]
[EventDate "2022.06.05"]
[EventType "swiss"]
[EventRounds "9"]
[EventCountry "GER"]
[SourceTitle "playchess.com"]
[Source "ChessBase"]
[SourceQuality "1"]
[TimeControl "40/4500+30:900+30"]

1. e4 {[%emt 0:00:00]} e5 {[%emt 0:00:00]} 2. Nf3 {[%emt 0:00:00]} Nc6 {[%emt 0:00:00]} 3. Bb5 {[%emt 0:00:00]} a6 {[%emt 0:00:00]} 4. Ba4 {[%emt 0:00:00]} Nge7 {[%emt 0:00:00]} 5. O-O {[%emt 0:00:00]} g6 {[%emt 0:00:00]} 6. c3 {[%emt 0:00:00]} Bg7 {[%emt 0:00:00]} 7. Re1 {[%emt 0:00:00]} O-O {[%emt 0:00:00]} 8. d4 {[%emt 0:00:00]} exd4 {[%emt 0:00:00]} 9. cxd4 {[%emt 0:00:00]} b5 {[%emt 0:00:00]} 10. Bc2 {[%emt 0:00:00]} Nb4 {[%emt 0:00:00]} 11. b3 {[%emt 0:00:00]} c5 {[%emt 0:07:19]} 12. Bb2 {[%emt 0:00:00]} d5 {[%emt 0:12:21]} 13. e5 {[%emt 0:00:00]} c4 {[%emt 0:04:59]} 14. Nc3 {[%emt 0:08:57]} Nxc2 {[%emt 0:05:39]} 15. Qxc2 {[%emt 0:02:40]} Bf5 {[%emt 0:00:23]} 16. Qd1 {[%emt 0:01:30]} Qa5 {[%emt 0:09:28]} 17. Nh4 {[%emt 0:07:42]} Bd7 {[%emt 0:04:58]} 18. Qd2 {[%emt 0:04:44]} b4 {[%emt 0:04:17]} 19. Ne2 {[%emt 0:01:35]} c3 {[%emt 0:00:47]} 20. Nxc3 {[%emt 0:01:03]} bxc3 {[%emt 0:00:05]} 21. Bxc3 {[%emt 0:00:17]} Qb5 {[%emt 0:01:22]} 22. Bb4 {[%emt 0:06:25]} Rfe8 {[%emt 0:00:19]} 23. Rac1 {[%emt 0:01:31]} Bh6 {[%emt 0:03:20]} 24. Qxh6 {[%emt 0:02:51]} Qxb4 {[%emt 0:00:10]} 25. Red1 {[%emt 0:01:33]} Nf5 {[%emt 0:05:02]} 26. Nxf5 {[%emt 0:01:59]} Bxf5 {[%emt 0:00:08]} 27. h4 {[%emt 0:03:05]} Rac8 {[%emt 0:03:08]} 28. Qf4 {[%emt 0:02:21]} h5 {[%emt 0:07:35]} 29. f3 {[%emt 0:04:09]} Rc2 {[%emt 0:10:52]} 30. Rxc2 {[%emt 0:04:09]} Bxc2 {[%emt 0:00:08]} 31. Rc1 {[%emt 0:00:44]} Bf5 {[%emt 0:04:40]} 32. Qe3 {[%emt 0:03:57]} a5 {[%emt 0:00:46]} 33. Qc3 {[%emt 0:00:35]} Qxc3 {[%emt 0:00:28]} 34. Rxc3 {[%emt 0:00:07]} Rc8 {[%emt 0:00:06]} 35. Rc5 {[%emt 0:04:20]} Rxc5 {[%emt 0:00:56]} 36. dxc5 {[%emt 0:01:17]} Kf8 {[%emt 0:00:27]} 37. Kf2 {[%emt 0:00:19]} d4 {[%emt 0:00:17]} 38. a3 {[%emt 0:00:36]} Ke7 {[%emt 0:00:47]} 39. b4 {[%emt 0:03:51]} axb4 {[%emt 0:01:26]} 40. axb4 {[%emt 0:00:50]} Kd7 {[%emt 0:00:35]} 41. b5 {[%emt 0:15:20]} Bd3 {[%emt 0:15:11]} 42. b6 {[%emt 0:00:27]} Ba6 {[%emt 0:00:59]} 43. g4 {[%emt 0:00:27]} Kc6 {[%emt 0:01:53]} 0-1

[Event "GER-ch Youth-U12 2022"]
[Site "Willingen"]
[Date "2022.06.10"]
[Round "8.20"]
[White "Prashanthakumar, Arju"]
[Black "Limmer, Marco"]
[Result "0-1"]
[ECO "C01"]
[WhiteElo "1265"]
[BlackElo "1825"]
[Annotator "NA RC COMBH"]
[PlyCount "116"]
[EventDate "2022.06.05"]
[EventType "swiss"]
[EventRounds "9"]
[EventCountry "GER"]
[SourceTitle "playchess.com"]
[Source "ChessBase"]
[SourceQuality "1"]
[TimeControl "40/4500+30:900+30"]

1. e4 {[%emt 0:00:00]} e6 {[%emt 0:00:00]} 2. d4 {[%emt 0:00:00]} d5 {[%emt 0:00:00]} 3. exd5 {[%emt 0:00:00]} exd5 {[%emt 0:00:00]} 4. Nf3 {[%emt 0:00:00]} Nf6 {[%emt 0:00:00]} 5. Bd3 {[%emt 0:00:00]} Bd6 {[%emt 0:00:00]} 6. O-O {[%emt 0:00:00]} O-O {[%emt 0:00:00]} 7. Bg5 {[%emt 0:00:00]} h6 {[%emt 0:00:00]} 8. Be3 {[%emt 0:00:00]} Re8 {[%emt 0:00:00]} 9. Re1 {[%emt 0:00:00]} Nc6 {[%emt 0:00:18]} 10. c3 {[%emt 0:00:00]} Bd7 {[%emt 0:06:59]} 11. Nbd2 {[%emt 0:00:00]} Ne4 {[%emt 0:06:26]} 12. Qc2 {[%emt 0:02:38]} f5 {[%emt 0:03:47]} 13. Nb3 {[%emt 0:09:29]} Qf6 {[%emt 0:08:11]} 14. Rad1 {[%emt 0:07:14]} ({White should play} 14. Nc5 $11 Bxc5 15. dxc5) 14... Re7 {[%emt 0:08:08]} (14... b6 $15 {might be stronger.}) 15. Nfd2 {[%emt 0:06:31]} (15. Nc5 $11) 15... Rae8 {[%emt 0:08:29]} ({Reject} 15... Qh4 $6 16. g3 Qf6 17. Kh1 $15) 16. f3 {[%emt 0:07:55]} (16. Nf3 $17) 16... Nxd2 {[%emt 0:00:34]} 17. Bxd2 $2 {[%emt 0:00:44] [#]} (17. Qxd2 {nothing else works.} Qh4 18. g3 Bxg3 19. hxg3 Qxg3+ 20. Qg2 Qxg2+ 21. Kxg2 Rxe3 22. Rxe3 Rxe3 23. Nc5) 17... Bxh2+ $1 {[%emt 0:02:17]} 18. Kxh2 {[%emt 0:07:36]} Qh4+ {[%emt 0:01:12]} 19. Kg1 {[%emt 0:00:24]} Rxe1+ {[%emt 0:00:08]} 20. Rxe1 {[%emt 0:00:23]} Rxe1+ {[%emt 0:00:07]} 21. Bxe1 {[%emt 0:00:18]} Qxe1+ {[%emt 0:00:04]} 22. Bf1 {[%emt 0:00:29]} (22. Kh2 $142) 22... b6 {[%emt 0:05:47]} 23. Qe2 {[%emt 0:04:40] [#]} (23. f4 $17) 23... Qxe2 $1 {[%emt 0:08:10]} 24. Bxe2 {[%emt 0:01:53]} Kf7 {[%emt 0:02:40]} 25. Kf2 {[%emt 0:04:13]} f4 {[%emt 0:01:29]} 26. g3 {[%emt 0:02:49]} fxg3+ {[%emt 0:01:15]} 27. Kxg3 {[%emt 0:01:29]} Ne7 {[%emt 0:01:44]} 28. Bd3 {[%emt 0:03:25]} Nf5+ {[%emt 0:02:05]} 29. Bxf5 {[%emt 0:01:20]} Bxf5 {[%emt 0:00:06]} 30. Nd2 {[%emt 0:02:15]} Kf6 {[%emt 0:03:56]} 31. Nf1 {[%emt 0:01:36]} g5 {[%emt 0:02:10]} 32. Ne3 {[%emt 0:01:07]} Be6 {[%emt 0:00:38]} 33. f4 {[%emt 0:02:17]} h5 {[%emt 0:02:26]} 34. fxg5+ {[%emt 0:02:13]} Kxg5 {[%emt 0:00:07]} 35. Ng2 {[%emt 0:01:25]} c5 {[%emt 0:01:57]} 36. b3 {[%emt 0:04:43]} Bf5 {[%emt 0:03:01]} 37. b4 {[%emt 0:03:31]} cxd4 {[%emt 0:00:42]} 38. cxd4 {[%emt 0:00:36]} Be4 {[%emt 0:00:23]} 39. Nh4 {[%emt 0:01:36]} a6 {[%emt 0:01:31]} 40. a3 {[%emt 0:01:13]} b5 {[%emt 0:00:21]} 41. Nf3+ {[%emt 0:16:04]} Bxf3 {[%emt 0:15:07]} 42. Kxf3 {[%emt 0:00:07]} h4 {[%emt 0:00:09]} 43. Kg2 {[%emt 0:00:09]} Kf4 {[%emt 0:00:10]} 44. Kh3 {[%emt 0:00:16]} Ke4 {[%emt 0:00:04]} 45. Kxh4 {[%emt 0:00:11]} Kxd4 {[%emt 0:00:05]} 46. Kg3 {[%emt 0:00:09]} Kc3 {[%emt 0:00:07]} 47. Kf2 {[%emt 0:00:15]} Kb3 {[%emt 0:00:10]} 48. Ke3 {[%emt 0:00:07]} Kxa3 {[%emt 0:00:04]} 49. Kd4 {[%emt 0:00:14]} Kxb4 {[%emt 0:00:04]} 50. Kxd5 {[%emt 0:00:13]} Kc3 {[%emt 0:00:06]} 51. Kc5 {[%emt 0:00:14]} b4 {[%emt 0:00:04]} 52. Kb6 {[%emt 0:00:05]} b3 {[%emt 0:00:04]} 53. Kxa6 {[%emt 0:00:10]} b2 {[%emt 0:00:02]} 54. Ka5 {[%emt 0:00:10]} b1=Q {[%emt 0:00:07]} 55. Ka6 {[%emt 0:00:08]} Kc4 {[%emt 0:00:05]} 56. Ka7 {[%emt 0:00:10]} Kc5 {[%emt 0:00:07]} 57. Ka8 {[%emt 0:00:08]} Kc6 {[%emt 0:00:04]} 58. Ka7 {[%emt 0:00:05]} Qb7# {[%emt 0:00:04]} 0-1

[Event "GER-ch Youth-U12 2022"]
[Site "Willingen"]
[Date "2022.06.10"]
[Round "8.21"]
[White "Nguyen, Bach Khoi"]
[Black "Radeke, Timothy"]
[Result "1-0"]
[ECO "C50"]
[WhiteElo "1261"]
[BlackElo "1129"]
[Annotator "NA RC COMBH"]
[PlyCount "41"]
[EventDate "2022.06.05"]
[EventType "swiss"]
[EventRounds "9"]
[EventCountry "GER"]
[SourceTitle "playchess.com"]
[Source "ChessBase"]
[SourceQuality "1"]
[TimeControl "40/4500+30:900+30"]

1. e4 {[%emt 0:00:00]} e5 {[%emt 0:00:00]} 2. Nf3 {[%emt 0:00:00]} Nc6 {[%emt 0:00:00]} 3. Bc4 {[%emt 0:00:00]} Bc5 {[%emt 0:00:00]} 4. d3 {[%emt 0:00:00]} Nf6 {[%emt 0:00:00]} 5. Nbd2 {[%emt 0:00:00]} O-O {[%emt 0:00:00]} 6. O-O {[%emt 0:00:00]} d5 {[%emt 0:00:00]} 7. exd5 {[%emt 0:00:00]} Nxd5 {[%emt 0:00:00]} 8. Re1 {[%emt 0:00:00]} f6 {[%emt 0:00:00]} 9. Nb3 {[%emt 0:00:00]} Bb6 {[%emt 0:00:00]} 10. d4 {[%emt 0:00:00]} Be6 {[%emt 0:00:00]} 11. dxe5 {[%emt 0:00:00]} fxe5 {[%emt 0:00:00]} 12. a4 {[%emt 0:00:00]} a6 {[%emt 0:01:43]} 13. Qd3 {[%emt 0:07:51]} Qd6 {[%emt 0:07:25]} 14. Ng5 {[%emt 0:06:40]} Rxf2 {[%emt 0:07:07]} 15. Qxh7+ {[%emt 0:00:39]} Kf8 {[%emt 0:00:46]} 16. Be3 {[%emt 0:08:25]} Bxe3 {[%emt 0:03:12]} 17. Ne4 {[%emt 0:06:49]} Bf5 {[%emt 0:10:15]} 18. Qh8+ {[%emt 0:03:08]} Ke7 {[%emt 0:01:31]} 19. Qxg7+ {[%emt 0:00:12]} Kd8 {[%emt 0:00:36]} 20. Nxd6 {[%emt 0:00:30]} cxd6 {[%emt 0:00:26]} 21. Bxd5 {[%emt 0:00:23]} 1-0

[Event "GER-ch Youth-U12 2022"]
[Site "Willingen"]
[Date "2022.06.10"]
[Round "8.24"]
[White "Böhler, Yannic"]
[Black "Mohammadzadeh, Daris"]
[Result "1/2-1/2"]
[ECO "A37"]
[WhiteElo "1361"]
[BlackElo "1371"]
[Annotator "NA RC COMBH"]
[PlyCount "68"]
[EventDate "2022.06.05"]
[EventType "swiss"]
[EventRounds "9"]
[EventCountry "GER"]
[SourceTitle "playchess.com"]
[Source "ChessBase"]
[SourceQuality "1"]
[TimeControl "40/4500+30:900+30"]

1. c4 {[%emt 0:00:00]} c5 {[%emt 0:00:00]} 2. Nc3 {[%emt 0:00:00]} Nc6 {[%emt 0:00:00]} 3. Nf3 {[%emt 0:00:00]} g6 {[%emt 0:00:00]} 4. g3 {[%emt 0:00:00]} Bg7 {[%emt 0:00:00]} 5. Bg2 {[%emt 0:00:00]} d6 {[%emt 0:00:00]} 6. O-O {[%emt 0:00:00]} e6 {[%emt 0:00:00]} 7. e3 {[%emt 0:00:00]} Nge7 {[%emt 0:00:00]} 8. d4 {[%emt 0:00:00]} cxd4 {[%emt 0:00:00]} 9. Nxd4 {[%emt 0:00:00]} O-O {[%emt 0:00:00]} 10. Ndb5 {[%emt 0:00:00]} Nf5 {[%emt 0:03:27]} 11. Ne2 {[%emt 0:04:09]} a6 {[%emt 0:06:32]} 12. Nbd4 {[%emt 0:04:10]} Nfxd4 {[%emt 0:09:15]} 13. Nxd4 {[%emt 0:01:24]} Nxd4 {[%emt 0:02:58]} 14. exd4 {[%emt 0:00:21]} Qb6 {[%emt 0:01:23]} 15. d5 {[%emt 0:12:25]} Bd7 {[%emt 0:08:05]} 16. Rb1 {[%emt 0:02:36]} exd5 {[%emt 0:01:10]} 17. Qxd5 {[%emt 0:03:20]} Bc6 {[%emt 0:04:17]} 18. Qxd6 {[%emt 0:04:13]} Rfd8 {[%emt 0:00:34]} 19. Qf4 {[%emt 0:02:01]} Bxg2 {[%emt 0:00:36]} 20. Kxg2 {[%emt 0:00:42]} Qc6+ {[%emt 0:00:18]} 21. Qf3 {[%emt 0:01:37]} Qxc4 {[%emt 0:00:30]} 22. b3 {[%emt 0:05:32]} Qd5 {[%emt 0:15:27]} 23. Be3 {[%emt 0:03:45]} Rac8 {[%emt 0:08:17]} 24. Qxd5 {[%emt 0:06:31]} Rxd5 {[%emt 0:00:12]} 25. Rfd1 {[%emt 0:00:30]} Rxd1 {[%emt 0:06:08]} 26. Rxd1 {[%emt 0:00:54]} h5 {[%emt 0:01:02]} 27. Rd7 {[%emt 0:04:03]} Rc2 {[%emt 0:00:51]} 28. Rd8+ {[%emt 0:02:18]} Kh7 {[%emt 0:00:41]} 29. Rd7 {[%emt 0:00:17]} Kg8 {[%emt 0:00:25]} 30. Rd8+ {[%emt 0:00:12]} Kh7 {[%emt 0:00:50]} 31. Rd7 {[%emt 0:00:13]} Kg8 {[%emt 0:00:15]} 32. Rd8+ {[%emt 0:00:27]} Kh7 33. Rd7 Kg8 34. Rd8+ Kh7 1/2-1/2

[Event "GER-ch Youth-U12 2022"]
[Site "Willingen"]
[Date "2022.06.10"]
[Round "8.25"]
[White "Hellenbroich, Hanno"]
[Black "Agirretxe San Sebastian, Jesus M"]
[Result "1-0"]
[ECO "B26"]
[WhiteElo "1274"]
[BlackElo "2117"]
[Annotator "TA"]
[PlyCount "61"]
[EventDate "2022.06.05"]
[EventType "swiss"]
[EventRounds "9"]
[EventCountry "GER"]
[SourceTitle "playchess.com"]
[Source "ChessBase"]
[SourceQuality "1"]
[TimeControl "40/4500+30:900+30"]

{[%evp 20,60,1,-18,-23,-28,0,-30,-14,-13,-15,-16,-33,-33,-30,-23,-20,-19,-30,-54,-21,-31,-24,-71,284,267,286,268,296,284,595,548,743,523,2144,1983,29993,29991,29993,29994,29994,29995,29999]} 1. e4 {[%emt 0:00:00]} c5 {[%emt 0:00:00]} 2. Nc3 {[%emt 0:00:00]} Nc6 {[%emt 0:00:00]} 3. g3 {[%emt 0:00:00]} g6 {[%emt 0:00:00]} 4. Bg2 {[%emt 0:00:00]} Bg7 {[%emt 0:00:00]} 5. d3 {[%emt 0:00:00]} d6 {[%emt 0:00:00]} 6. f4 {[%emt 0:00:00]} e6 {[%emt 0:00:00]} 7. Nge2 {[%emt 0:00:00]} Nge7 {[%emt 0:00:00]} 8. O-O {[%emt 0:00:00]} O-O {[%emt 0:00:00]} 9. a4 {[%emt 0:00:00]} Rb8 {[%emt 0:00:00]} 10. Be3 {[%emt 0:00:00]} Nd4 {[%emt 0:00:00]} 11. Qd2 {[%emt 0:00:00]} Nec6 {[%emt 0:00:00] B26: Closed Sicilian: 3 g3, lines with early Be3.} 12. Nd1 {[%emt 0:00:00] [#]} Qc7 $146 {[%emt 0:01:29]} ({Predecessor:} 12... d5 13. Nc1 dxe4 14. c3 Nf3+ 15. Bxf3 exf3 16. Bxc5 Re8 17. Nf2 b6 18. Be3 e5 19. fxe5 Nxe5 20. Nb3 Bb7 21. Nd4 a6 22. Rfe1 Qd5 23. Bh6 Bxh6 24. Qxh6 Nxd3 25. Nxd3 f2+ {0-1 (25) Garcia Padron,J (2400)-Geller,E (2550) Las Palmas 1979}) 13. Ra3 {[%emt 0:01:13]} a6 {[%emt 0:01:36][%cal Ba7a6,Ba6b5][%mdl 32] Black has an edge.} 14. c3 {[%emt 0:00:57]} Nxe2+ {[%emt 0:00:06]} 15. Qxe2 {[%emt 0:00:05]} b5 {[%emt 0:00:10]} 16. axb5 {[%emt 0:09:50]} axb5 {[%emt 0:00:28]} 17. g4 {[%emt 0:00:11]} f5 {[%emt 0:00:22]} 18. gxf5 {[%emt 0:00:56]} exf5 {[%emt 0:00:13]} 19. e5 {[%emt 0:03:50]} b4 {[%emt 0:07:47]} 20. Ra1 {[%emt 0:06:23]} ({Much worse is} 20. Bd5+ Kh8 21. Ra2 Ne7 22. exd6 Qxd6 $17) 20... bxc3 {[%emt 0:00:32]} 21. Nxc3 {[%emt 0:00:25]} (21. bxc3 $11 Kh8 22. d4) 21... Nd4 $2 {[%emt 0:04:15][%mdl 8192] Loses the game.} (21... Kh8 $17 {stays on course.}) 22. Bxd4 $18 {[%emt 0:00:21]} cxd4 {[%emt 0:00:36]} 23. Nd5 {[%emt 0:00:18]} Qd7 {[%emt 0:02:14]} 24. Rfc1 {[%emt 0:01:22][%cal Bf1c1,Bc1c7,Bc7g7][%mdl 32] [#] Hoping for Rc7.} Qb5 $2 {[%emt 0:21:59]} (24... Rf7 {is a better chance.} 25. Rc7 Qe6) 25. Rc7 {[%emt 0:04:09]} Ba6 {[%emt 0:00:32]} 26. Nf6+ {[%emt 0:01:18]} Bxf6 {[%emt 0:02:48]} 27. exf6 {[%emt 0:00:08] White threatens Qe7 and mate.} Qxb2 {[%emt 0:09:23]} 28. Rg7+ {[%emt 0:01:02] White mates.} Kh8 {[%emt 0:00:14] [#]} 29. Rxh7+ $3 {[%emt 0:00:11][%mdl 512]} Kg8 {[%emt 0:02:03]} 30. Qe6+ {[%emt 0:00:12]} Rf7 {[%emt 0:00:00]} 31. Qxf7# {[%emt 0:00:10] Weighted Error Value: White=0.24 (precise) /Black=1.05} 1-0

[Event "GER-ch Youth-U12 2022"]
[Site "Willingen"]
[Date "2022.06.10"]
[Round "8.26"]
[White "Halich, Jan Finnian"]
[Black "Gulamzada, Elmir"]
[Result "0-1"]
[ECO "D40"]
[WhiteElo "877"]
[BlackElo "1539"]
[Annotator "NA RC COMBH"]
[PlyCount "64"]
[EventDate "2022.06.05"]
[EventType "swiss"]
[EventRounds "9"]
[EventCountry "GER"]
[SourceTitle "playchess.com"]
[Source "ChessBase"]
[SourceQuality "1"]
[TimeControl "40/4500+30:900+30"]

1. d4 {[%emt 0:00:00]} e6 {[%emt 0:00:00]} 2. e3 {[%emt 0:00:00]} d5 {[%emt 0:00:00]} 3. c4 {[%emt 0:00:00]} Nf6 {[%emt 0:00:00]} 4. Nc3 {[%emt 0:00:00]} c5 {[%emt 0:00:00]} 5. Nf3 {[%emt 0:00:00]} Nc6 {[%emt 0:00:00]} 6. b3 {[%emt 0:00:00]} cxd4 {[%emt 0:00:00]} 7. exd4 {[%emt 0:00:00]} Bb4 {[%emt 0:00:00]} 8. Bd2 {[%emt 0:00:00]} dxc4 {[%emt 0:00:00]} 9. a3 {[%emt 0:01:24]} Be7 {[%emt 0:00:00]} 10. Be3 {[%emt 0:00:00]} cxb3 {[%emt 0:00:00]} 11. Qxb3 {[%emt 0:00:00]} O-O {[%emt 0:00:00]} 12. Bc4 {[%emt 0:00:00]} Na5 {[%emt 0:00:00]} 13. Qa2 {[%emt 0:00:00]} Qc7 {[%emt 0:00:00]} 14. Nd2 {[%emt 0:00:00]} Nxc4 {[%emt 0:00:00]} 15. Qxc4 {[%emt 0:00:00]} Qxc4 {[%emt 0:01:22]} 16. Nxc4 {[%emt 0:00:00]} Bd7 {[%emt 0:01:22]} 17. Ne5 {[%emt 0:00:00]} Rac8 {[%emt 0:01:45]} 18. Bg5 {[%emt 0:00:00]} Bc6 {[%emt 0:02:46]} 19. O-O {[%emt 0:00:00]} Bxg2 {[%emt 0:04:32]} 20. Kxg2 {[%emt 0:00:00]} Rxc3 {[%emt 0:00:32]} 21. Rfc1 {[%emt 0:00:00]} Rfc8 {[%emt 0:03:44]} 22. Rxc3 {[%emt 0:00:00]} Rxc3 {[%emt 0:00:11]} 23. Rb1 {[%emt 0:00:00]} b6 {[%emt 0:01:31]} 24. Nd7 {[%emt 0:00:00]} Rxa3 {[%emt 0:01:37]} 25. Rc1 {[%emt 0:00:00]} h6 {[%emt 0:00:32]} 26. Nxf6+ {[%emt 0:00:00]} Bxf6 {[%emt 0:00:15]} 27. Rc8+ {[%emt 0:00:00]} Kh7 {[%emt 0:00:20]} 28. Bxf6 {[%emt 0:00:00]} gxf6 {[%emt 0:00:05]} 29. Rc7 {[%emt 0:00:00]} Kg6 {[%emt 1:09:26]} 30. Kf1 {[%emt 0:00:45]} Ra2 {[%emt 0:00:00]} 31. Ke1 {[%emt 0:00:00]} a5 {[%emt 0:00:00]} 32. Rb7 {[%emt 0:00:04]} Rb2 {[%emt 0:00:00]} 0-1